bitfinex/quotes_SOLUSD_20250209
["timestamp","ask_amount","ask_price","bid_price","bid_amount"]
[1739111501572,0.03,198.92,198.88,103.6885]
[1739111501757,0.03,198.92,198.91,5.82138537]
[1739111506058,0.03,198.97,198.94,20.0]
[1739111506255,0.03,198.97,198.96,5.82138537]
[1739111507079,0.03,198.97,198.96,6.57507289]
[1739111507764,0.03,199.05,199.03,9.08916516]
[1739111507954,0.03,199.05,199.04,9.08916516]
[1739111509463,0.03,199.05,199.03,9.08916516]
[1739111509769,0.03,199.05,199.02,9.08916516]
[1739111509978,0.03,199.05,199.01,9.08916516]
[1739111510356,0.03,199.05,199.02,9.08916516]
[1739111511583,0.03,199.05,199.03,9.08916516]
[1739111512685,0.03,199.05,199.04,9.08916516]
[1739111514161,0.03,199.05,199.01,9.08916516]
[1739111514367,0.03,199.05,199.0,9.08916516]
[1739111515079,0.03,199.05,198.99,9.08916516]
[1739111515286,10.72346516,199.05,198.99,9.08916516]
[1739111515673,1.6343,199.05,198.99,9.08916516]
[1739111516262,9.08916516,199.04,198.98,9.08916516]
[1739111516676,9.08916516,199.04,198.97,9.08916516]
[1739111517194,9.08916516,199.04,198.96,0.063]
[1739111517195,10.72346516,199.05,198.98,9.08916516]
[1739111517570,10.72346516,199.05,198.99,9.08916516]
[1739111517772,10.72346516,199.05,198.98,9.08916516]
[1739111518487,1.6343,199.05,198.99,9.08916516]
[1739111519371,1.6343,199.05,199.0,9.08916516]
[1739111520174,1.6343,199.05,198.99,9.08916516]
[1739111521581,10.72346516,199.05,198.98,9.08916516]
[1739111522471,1.6343,199.05,198.99,9.08916516]
[1739111522796,10.72346516,199.05,198.98,9.08916516]
[1739111523894,1.6343,199.05,199.0,9.08916516]
[1739111524092,1.6343,199.05,199.01,9.08916516]
[1739111525774,1.6343,199.05,199.03,9.08916516]
[1739111525775,0.03,199.05,199.03,9.08916516]
[1739111525980,0.03,199.05,199.04,9.08916516]
[1739111529577,0.03,199.05,199.04,5.81546561]
[1739111534611,0.03,199.05,199.02,5.81546561]
[1739111535897,0.03,199.05,199.03,5.81546561]
[1739111537001,0.03,199.05,199.02,5.81546561]
[1739111537890,0.03,199.05,198.99,0.063]
[1739111537891,5.84546561,199.05,198.99,5.87846561]
[1739111538204,5.81546561,199.04,198.99,0.063]
[1739111539910,5.81546561,199.02,198.99,0.063]
[1739111541709,5.81546561,199.0,198.99,0.063]
[1739111543514,5.81546561,199.01,198.99,0.063]
[1739111545901,19.22731414,199.02,198.99,0.063]
[1739111546397,5.81546561,199.03,198.99,0.063]
[1739111547709,19.22731414,199.03,198.99,0.063]
[1739111547892,5.81546561,199.02,198.99,0.063]
[1739111549216,19.22731414,199.02,198.99,0.063]
[1739111549411,13.41184853,199.01,198.99,0.063]
[1739111550901,5.81546561,199.03,198.99,0.063]
[1739111551098,7.40776561,199.04,198.99,0.063]
[1739111554321,5.81546561,199.01,198.99,0.063]
[1739111554630,5.81546561,199.0,198.99,0.063]
[1739111555005,19.35280414,199.0,198.99,0.063]
[1739111556203,22.87030414,199.0,198.99,0.063]
[1739111557101,19.22731414,199.0,198.99,0.063]
[1739111557307,5.51546561,199.01,198.99,0.063]
[1739111557703,13.41184853,199.01,198.99,0.063]
[1739111559108,5.81546561,199.01,198.99,0.063]
[1739111561244,17.05433853,199.03,198.99,0.063]
[1739111561245,19.22731414,199.03,198.99,0.063]
[1739111562665,5.84546561,199.05,198.99,5.87846561]
[1739111562941,0.03,199.05,199.01,5.81546561]
[1739111563417,0.03,199.05,198.99,0.063]
[1739111563418,0.03,199.05,198.99,5.87846561]
[1739111563814,0.03,199.05,198.99,0.063]
[1739111563815,5.81546561,199.02,198.99,0.063]
[1739111564244,5.84546561,199.05,198.99,5.87846561]
[1739111564427,0.03,199.05,199.0,5.81546561]
[1739111564611,0.03,199.05,199.01,5.81546561]
[1739111564938,0.03,199.05,199.02,5.81546561]
[1739111566142,0.03,199.05,199.03,5.81546561]
[1739111566943,0.03,199.05,199.02,5.81546561]
[1739111567552,5.84546561,199.05,198.99,0.063]
[1739111568250,5.81546561,199.04,198.99,0.063]
[1739111568429,5.81546561,199.03,198.99,0.063]
[1739111573046,5.81546561,199.04,198.99,0.063]
[1739111573348,5.81546561,199.01,198.99,0.063]
[1739111573759,5.81546561,199.0,198.99,0.063]
[1739111576147,19.22731414,199.01,198.99,0.063]
[1739111579055,5.81546561,199.0,198.99,0.063]
[1739111579756,19.22731414,199.0,198.99,0.063]
[1739111580162,13.41184853,199.0,198.99,0.063]
[1739111581035,19.22731414,199.0,198.99,0.063]
[1739111581349,22.74481414,199.0,198.99,0.063]
[1739111586359,46.00667658,199.0,198.99,0.063]
[1739111586547,9.33296561,199.0,198.99,0.063]
[1739111586749,5.81546561,199.0,198.99,0.063]
[1739111586961,19.22731414,199.0,198.99,0.063]
[1739111587357,22.74481414,199.0,198.99,0.063]
[1739111587745,46.00667658,199.0,198.99,0.063]
[1739111589654,48.00667658,199.0,198.99,0.063]
[1739111589859,20.0,198.97,198.96,0.063]
[1739111590047,88.62731414,198.97,198.96,0.063]
[1739111590446,88.75280414,198.97,198.96,0.063]
[1739111590648,90.03222328,198.97,198.96,0.063]
[1739111591171,93.55032328,198.97,198.96,0.063]
[1739111592349,92.27090414,198.97,198.96,0.063]
[1739111592573,88.75280414,198.97,198.96,0.063]
[1739111593271,92.27090414,198.97,198.96,0.063]
[1739111594943,93.27090414,198.97,198.96,0.063]
[1739111595146,125.57090414,198.97,198.96,0.063]
[1739111596069,0.12549,198.92,198.86,6.0249]
[1739111596245,0.12549,198.88,198.86,6.0249]
[1739111596440,5.81546561,198.9,198.86,6.0249]
[1739111596646,25.81546561,198.91,198.86,6.0249]
[1739111596870,0.12549,198.9,198.86,6.0249]
[1739111597174,0.12549,198.9,198.86,6.0879]
[1739111598164,20.0,198.91,198.86,11.90336561]
[1739111599258,25.81546561,198.91,198.86,6.0879]
[1739111600061,20.0,198.91,198.86,6.0879]
[1739111600574,5.81546561,198.93,198.86,11.90336561]
[1739111600755,5.81546561,198.96,198.89,5.81546561]
[1739111601278,19.22731414,198.97,198.9,5.81546561]
[1739111601862,22.74541414,198.97,198.9,5.81546561]
[1739111602371,5.81546561,199.0,198.93,5.81546561]
[1739111602572,5.84546561,199.01,198.94,12.40966561]
[1739111602780,5.84546561,199.01,198.95,5.81546561]
[1739111603150,5.81546561,199.0,198.94,12.40966561]
[1739111603369,5.81546561,198.99,198.94,6.5942]
[1739111605773,5.81546561,199.0,198.94,6.5942]
[1739111607660,5.81546561,198.99,198.94,6.5942]
[1739111609674,5.81546561,199.0,198.94,6.5942]
[1739111610076,5.84546561,199.01,198.95,5.81546561]
[1739111610261,5.84546561,199.01,198.98,5.81546561]
[1739111610262,0.03,199.01,198.98,5.81546561]
[1739111610464,0.03,199.01,198.97,5.81546561]
[1739111611054,5.84546561,199.01,198.95,1.6348]
[1739111611377,5.81546561,198.97,198.95,1.6348]
[1739111614179,5.81546561,198.96,198.94,6.5942]
[1739111614366,5.81546561,198.95,198.9,1.6348]
[1739111614678,5.81546561,198.93,198.9,1.6348]
[1739111615481,5.81546561,198.92,198.89,6.4614]
[1739111616356,5.81546561,198.93,198.89,6.4614]
[1739111617067,5.81546561,198.95,198.89,12.27686561]
[1739111618082,5.81546561,198.95,198.89,6.4614]
[1739111618460,5.81546561,198.94,198.89,6.4614]
[1739111618662,5.81546561,198.92,198.89,6.4614]
[1739111621782,20.0,198.95,198.89,12.27686561]
[1739111621984,0.03,198.96,198.9,5.81546561]
[1739111622157,5.81546561,198.95,198.89,12.27686561]
[1739111622568,5.81546561,198.94,198.89,6.4614]
[1739111623282,5.81546561,198.93,198.89,6.4614]
[1739111623785,5.81546561,198.92,198.89,6.4614]
[1739111624872,5.81546561,198.93,198.89,6.4614]
[1739111625079,5.81546561,198.94,198.89,6.4614]
[1739111625279,5.84546561,198.96,198.89,12.27686561]
[1739111625783,5.84546561,198.96,198.89,6.4614]
[1739111625784,9.10036823,198.95,198.89,6.4614]
[1739111627582,9.10036823,198.93,198.89,6.4614]
[1739111628296,9.10036823,198.92,198.89,6.4614]
[1739111629679,9.10036823,198.93,198.89,6.4614]
[1739111632080,9.10036823,198.94,198.89,6.5244]
[1739111633693,9.10036823,198.93,198.89,6.5244]
[1739111633896,9.10036823,198.94,198.89,6.5244]
[1739111636806,0.03,198.96,198.9,9.10036823]
[1739111636973,0.03,198.96,198.91,9.10036823]
[1739111637295,0.03,198.96,198.9,9.10036823]
[1739111638096,0.03,198.96,198.91,9.10036823]
[1739111639679,0.03,198.96,198.9,9.10036823]
[1739111640995,9.13036823,198.96,198.89,15.62476823]
[1739111641194,9.10036823,198.93,198.89,6.5244]
[1739111641700,9.10036823,198.94,198.89,6.5244]
[1739111642689,12.61896823,198.94,198.89,6.5244]
[1739111642879,9.10036823,198.94,198.89,6.5244]
[1739111643479,9.10036823,198.95,198.89,15.62476823]
[1739111643679,0.03,198.96,198.91,9.10036823]
[1739111644302,0.03,198.96,198.92,9.10036823]
[1739111645779,0.03,198.96,198.91,9.10036823]
[1739111647613,0.03,198.96,198.91,5.82325135]
[1739111647981,0.03,198.96,198.92,5.82325135]
[1739111648399,0.03,198.96,198.9,5.82325135]
[1739111648597,5.85325135,198.96,198.89,12.34765135]
[1739111648912,9.37145135,198.96,198.89,12.34765135]
[1739111649727,5.82325135,198.93,198.89,6.5244]
[1739111650496,5.82325135,198.9,198.89,0.063]
[1739111650699,19.23509988,198.9,198.89,0.063]
[1739111651712,22.75439988,198.9,198.89,0.063]
[1739111651899,46.04740528,198.9,198.89,0.063]
[1739111653189,47.55990528,198.9,198.89,0.063]
[1739111653717,36.66836161,198.9,198.89,0.063]
[1739111654687,37.66836161,198.9,198.89,0.063]
[1739111655286,36.66836161,198.9,198.89,0.063]
[1739111656590,37.66836161,198.9,198.89,0.063]
[1739111656985,38.66836161,198.9,198.89,0.063]
[1739111657297,42.52420507,198.87,198.86,0.063]
[1739111659006,22.52420507,198.87,198.86,0.063]
[1739111659209,9.11235654,198.89,198.86,0.063]
[1739111660318,9.11235654,198.88,198.86,0.063]
[1739111661222,13.41184853,198.88,198.86,0.063]
[1739111664400,22.52420507,198.87,198.86,0.063]
[1739111666614,26.04400507,198.87,198.86,0.063]
[1739111667907,13.41184853,198.87,198.86,0.063]
[1739111668103,9.11235654,198.88,198.86,0.063]
[1739111668413,9.11235654,198.87,198.86,0.063]
[1739111669003,22.52420507,198.88,198.86,0.063]
[1739111669202,9.11235654,198.87,198.86,0.063]
[1739111670505,22.52420507,198.88,198.86,0.063]
[1739111671121,9.11235654,198.87,198.86,0.063]
[1739111673600,5.8293844,198.87,198.86,0.063]
[1739111677419,22.76093293,198.88,198.86,0.063]
[1739111677631,19.24123293,198.88,198.86,0.063]
[1739111677922,5.8293844,198.87,198.86,0.063]
[1739111680734,9.3786844,198.9,198.86,0.063]
[1739111680899,13.41184853,198.89,198.86,0.063]
[1739111681723,0.03,198.9,198.86,0.063]
[1739111683537,13.41184853,198.89,198.86,0.063]
[1739111687902,9.3786844,198.9,198.86,0.063]
[1739111687903,20.03,198.9,198.86,0.063]
[1739111688207,0.03,198.9,198.88,5.8293844]
[1739111689419,0.03,198.9,198.89,5.8293844]
[1739111690624,0.03,198.9,198.87,5.8293844]
[1739111690809,0.03,198.9,198.86,5.8923844]
[1739111692320,0.03,198.9,198.89,5.8293844]
[1739111694134,0.03,198.9,198.88,5.8293844]
[1739111694822,0.03,198.9,198.87,5.8293844]
[1739111695132,0.03,198.9,198.86,0.063]
[1739111695634,5.8593844,198.9,198.86,0.063]
[1739111699122,5.8293844,198.88,198.86,0.063]
[1739111700740,5.8293844,198.89,198.86,0.063]
[1739111701536,5.8593844,198.9,198.86,0.063]
[1739111702033,5.8293844,198.89,198.86,0.063]
[1739111702629,20.0,198.87,198.86,0.063]
[1739111702826,19.24123293,198.87,198.86,0.063]
[1739111703221,42.76103293,198.87,198.86,0.063]
[1739111704231,43.76103293,198.87,198.86,0.063]
[1739111704532,43.76103293,198.87,198.83,0.063]
[1739111704533,33.41184853,198.86,198.83,0.063]
[1739111704723,19.24123293,198.84,198.83,0.063]
[1739111705032,22.76163293,198.84,198.83,0.063]
[1739111705544,20.0,198.8,198.79,0.063]
[1739111705712,62.55877053,198.8,198.79,0.063]
[1739111707049,42.76233293,198.8,198.79,0.063]
[1739111707330,66.07987053,198.8,198.79,0.063]
[1739111707712,9.1194586,198.82,198.79,0.063]
[1739111708219,20.0,198.8,198.79,0.063]
[1739111708415,29.1194586,198.8,198.79,0.063]
[1739111708814,42.53130713,198.8,198.79,0.063]
[1739111709029,42.65679713,198.8,198.79,0.063]
[1739111711026,46.17789713,198.8,198.79,0.063]
[1739111711427,56.29735573,198.8,198.79,0.063]
[1739111711630,47.17789713,198.8,198.79,0.063]
[1739111712333,46.17789713,198.8,198.79,0.063]
[1739111712819,42.65679713,198.8,198.79,0.063]
[1739111713020,22.65679713,198.8,198.79,0.063]
[1739111714137,9.1194586,198.8,198.79,0.063]
[1739111714342,9.2449486,198.8,198.79,0.063]
[1739111714842,0.12549,198.8,198.79,0.063]
[1739111715017,9.1194586,198.81,198.79,0.063]
[1739111716131,9.1194586,198.84,198.79,0.063]
[1739111716357,9.1194586,198.86,198.79,9.1824586]
[1739111716645,0.12549,198.85,198.79,9.1824586]
[1739111716817,22.53130713,198.87,198.8,9.1194586]
[1739111717223,9.1194586,198.88,198.81,9.1194586]
[1739111718346,0.03,198.9,198.85,9.1194586]
[1739111718549,0.03,198.9,198.86,9.1194586]
[1739111718935,0.03,198.9,198.87,9.1194586]
[1739111720141,0.03,198.9,198.86,9.1194586]
[1739111720529,0.03,198.9,198.85,9.1194586]
[1739111721626,0.03,198.9,198.89,9.1194586]
[1739111722334,0.03,198.9,198.89,15.5831586]
[1739111723259,0.03,198.9,198.89,6.4637]
[1739111725862,0.03,198.9,198.89,15.5831586]
[1739111727358,0.03,198.96,198.95,20.0]
[1739111727670,0.03,198.96,198.95,30.8731261]
[1739111728769,0.03,198.96,198.95,29.8731261]
[1739111729141,0.03,198.96,198.95,29.1194586]
[1739111730964,0.03,198.96,198.95,30.1194586]
[1739111731431,0.03,198.96,198.95,31.1194586]
[1739111732462,0.03,198.96,198.95,113.2194586]
[1739111735177,0.03,198.96,198.95,111.2194586]
[1739111736279,0.03,198.96,198.95,91.2194586]
[1739111737805,0.03,198.96,198.95,92.97321077]
[1739111739902,0.03,198.96,198.95,91.2194586]
[1739111743676,0.03,198.96,198.95,91.97313771]
[1739111746711,0.03,198.96,198.95,91.2194586]
[1739111751802,0.03,198.96,198.95,92.2194586]
[1739111754010,0.03,198.96,198.95,91.2194586]
[1739111754592,0.03,198.96,198.95,92.2194586]
[1739111756217,0.03,199.01,198.97,1.0]
[1739111756388,0.03,199.01,199.0,9.1194586]
[1739111761818,0.03,199.01,198.98,9.1194586]
[1739111761999,0.03,199.01,198.96,9.1194586]
[1739111763708,9.1194586,198.99,198.91,82.1]
[1739111764011,9.1194586,198.98,198.91,9.1194586]
[1739111764388,9.1194586,198.96,198.9,9.1494586]
[1739111765333,9.1194586,198.97,198.9,9.1494586]
[1739111765492,9.1194586,198.97,198.91,9.1194586]
[1739111765692,9.1194586,198.98,198.92,9.1194586]
[1739111765893,9.1194586,198.98,198.9,0.03]
[1739111765894,9.1194586,198.98,198.91,9.1194586]
[1739111767519,0.03,199.01,198.95,9.1194586]
[1739111767826,20.0,198.99,198.95,9.1194586]
[1739111768117,0.03,199.01,198.95,9.1194586]
[1739111768415,0.03,199.01,198.98,9.1194586]
[1739111769206,0.03,199.01,198.99,9.1194586]
[1739111769413,0.03,199.01,199.0,9.1194586]
[1739111770214,0.03,199.01,199.0,18.2389172]
[1739111772020,0.03,199.01,199.0,19.99241644]
[1739111772404,0.03,199.05,199.01,1.0]
[1739111772611,0.03,199.05,199.04,9.1194586]
[1739111778209,0.03,199.05,199.04,10.1194586]
[1739111778415,0.03,199.07,199.06,2.0]
[1739111778622,0.03,199.1,199.09,21.0]
[1739111778925,1.6391,199.25,199.12,1.0]
[1739111779127,1.6391,199.25,199.15,9.1194586]
[1739111779803,10.7585586,199.25,199.15,9.1194586]
[1739111780120,9.1194586,199.24,199.15,9.1194586]
[1739111781207,9.1194586,199.23,199.15,9.1194586]
[1739111781619,26.04460713,199.24,199.15,9.1194586]
[1739111781814,22.53130713,199.24,199.15,9.1194586]
[1739111782132,7.75280547,199.28,199.16,1.0]
[1739111782300,7.75280547,199.28,199.26,9.1194586]
[1739111782607,7.75280547,199.28,199.27,9.1194586]
[1739111783027,7.75280547,199.28,199.25,9.1194586]
[1739111783231,7.75280547,199.28,199.26,9.1194586]
[1739111783403,7.75280547,199.28,199.23,8.6194586]
[1739111783605,0.12549,199.27,199.21,9.1194586]
[1739111784418,9.1194586,199.26,199.19,9.1194586]
[1739111784632,9.1194586,199.26,199.16,3.96]
[1739111784633,0.12549,199.24,199.18,9.1194586]
[1739111785009,9.2449486,199.24,199.17,9.1194586]
[1739111785403,9.1194586,199.23,199.16,9.1194586]
[1739111785609,9.1194586,199.23,199.1,16.09923133]
[1739111785610,9.1194586,199.22,199.15,9.1194586]
[1739111785804,9.1194586,199.22,199.14,9.1194586]
[1739111786040,9.1194586,199.22,199.15,9.1194586]
[1739111786512,0.12549,199.22,199.17,9.1194586]
[1739111786727,1.6391,199.24,199.19,9.1194586]
[1739111787047,1.6391,199.24,199.2,9.1194586]
[1739111787208,20.0,199.25,199.21,9.1194586]
[1739111787410,10.7585586,199.29,199.22,9.1194586]
[1739111787722,13.53733853,199.28,199.22,9.1194586]
[1739111788319,0.12549,199.28,199.23,9.1194586]
[1739111788614,0.12549,199.28,199.2,9.1194586]
[1739111788615,9.1194586,199.26,199.2,9.1194586]
[1739111788830,9.1194586,199.26,199.19,9.1194586]
[1739111789128,9.1194586,199.27,199.2,9.1194586]
[1739111789325,9.1194586,199.27,199.21,9.1194586]
[1739111789527,9.1194586,199.27,199.2,9.1194586]
[1739111789822,14.5151524,199.27,199.2,14.5151524]
[1739111790133,14.5151524,199.26,199.19,14.5151524]
[1739111790630,16.1542524,199.26,199.19,14.5151524]
[1739111790931,14.5151524,199.25,199.18,14.5151524]
[1739111791235,14.5151524,199.25,199.17,14.5151524]
[1739111791236,14.5151524,199.23,199.17,14.5151524]
[1739111792327,0.12549,199.22,199.17,14.5151524]
[1739111792643,14.5151524,199.21,199.14,14.5151524]
[1739111793616,14.5151524,199.2,199.14,14.5151524]
[1739111794238,14.5151524,199.19,199.12,14.5151524]
[1739111795138,14.5151524,199.19,199.17,0.03]
[1739111796638,14.5151524,199.18,199.17,0.03]
[1739111797340,18.0280524,199.27,199.17,14.5451524]
[1739111797520,14.5151524,199.27,199.21,14.5151524]
[1739111797716,0.12549,199.26,199.21,14.5151524]
[1739111797912,14.6406424,199.26,199.19,14.5151524]
[1739111798136,14.5151524,199.25,199.19,14.5151524]
[1739111798318,14.5151524,199.25,199.18,14.5151524]
[1739111799129,14.6406424,199.26,199.19,14.5151524]
[1739111799328,0.12549,199.26,199.2,14.5151524]
[1739111800240,13.53733853,199.26,199.2,14.5151524]
[1739111801140,13.53733853,199.26,199.17,0.03]
[1739111801141,14.6406424,199.26,199.19,14.5151524]
[1739111802449,0.063,199.29,199.25,14.5151524]
[1739111802887,0.063,199.29,199.26,14.5151524]
[1739111803141,0.063,199.29,199.27,14.5151524]
[1739111803724,0.063,199.29,199.26,14.5151524]
[1739111805257,0.063,199.29,199.27,14.5151524]
[1739111805927,0.063,199.29,199.21,1.75272272]
[1739111805928,0.063,199.29,199.28,14.5151524]
[1739111807341,0.063,199.29,199.28,15.26760477]
[1739111808663,0.063,199.29,199.28,14.5151524]
[1739111811747,0.063,199.29,199.28,9.06205165]
[1739111813566,0.063,199.29,199.27,9.06205165]
[1739111815973,0.063,199.29,199.22,6.75315094]
[1739111815974,0.063,199.29,199.25,9.06205165]
[1739111816178,0.063,199.36,199.28,19.1241033]
[1739111816471,0.063,199.36,199.35,9.06205165]
[1739111817044,0.063,199.36,199.3,9.06205165]
[1739111817243,9.12505165,199.36,199.3,9.06205165]
[1739111817645,0.063,199.36,199.3,14.49984786]
[1739111818783,14.56284786,199.36,199.28,14.49984786]
[1739111819144,13.41184853,199.35,199.28,14.49984786]
[1739111819344,13.41184853,199.35,199.28,14.52984786]
[1739111819574,0.12549,199.34,199.28,14.52984786]
[1739111819775,14.62533786,199.34,199.28,14.52984786]
[1739111819963,14.62533786,199.34,199.28,0.03]
[1739111820273,14.49984786,199.3,199.28,0.03]
[1739111820474,14.62533786,199.29,199.28,0.03]
[1739111820682,28.03718639,199.29,199.28,0.03]
[1739111822482,31.54958639,199.29,199.28,0.03]
[1739111824578,28.03718639,199.29,199.28,0.03]
[1739111827076,31.54958639,199.29,199.28,0.03]
[1739111828088,32.54958639,199.29,199.28,0.03]
[1739111828455,13.41184853,199.24,199.17,0.03]
[1739111828653,0.12549,199.22,199.17,0.03]
[1739111829760,14.62533786,199.22,199.17,0.03]
[1739111830169,0.12549,199.22,199.17,0.03]
[1739111830575,14.62533786,199.22,199.17,0.03]
[1739111830958,14.49984786,199.21,199.17,0.03]
[1739111831281,14.49984786,199.23,199.17,0.03]
[1739111831587,14.49984786,199.27,199.2,14.49984786]
[1739111831884,0.12549,199.26,199.2,14.49984786]
[1739111832189,20.0,199.25,199.19,14.49984786]
[1739111832389,14.49984786,199.23,199.17,0.03]
[1739111832780,14.49984786,199.22,199.17,0.03]
[1739111833169,27.91169639,199.24,199.17,14.52984786]
[1739111833364,14.49984786,199.25,199.19,14.49984786]
[1739111833685,1.6589,199.28,199.22,14.49984786]
[1739111833686,14.49984786,199.28,199.22,14.49984786]
[1739111833895,0.063,199.29,199.26,14.49984786]
[1739111834070,0.063,199.29,199.28,14.49984786]
[1739111834270,0.063,199.29,199.25,14.49984786]
[1739111834473,0.063,199.29,199.24,14.49984786]
[1739111834673,14.49984786,199.28,199.21,20.71234786]
[1739111834961,0.18849,199.29,199.21,20.71234786]
[1739111834962,14.49984786,199.27,199.21,6.2125]
[1739111835164,14.49984786,199.28,199.21,20.71234786]
[1739111835472,14.68833786,199.29,199.22,14.49984786]
[1739111835864,0.18849,199.29,199.23,14.49984786]
[1739111836188,0.18849,199.29,199.21,6.2125]
[1739111836189,14.49984786,199.27,199.21,6.2125]
[1739111836398,14.49984786,199.25,199.19,1.5481]
[1739111836683,0.12549,199.26,199.17,0.03]
[1739111836684,14.49984786,199.23,199.17,0.03]
[1739111836881,14.49984786,199.22,199.17,0.03]
[1739111837268,0.12549,199.23,199.17,0.03]
[1739111837474,14.62533786,199.23,199.17,0.03]
[1739111837890,14.49984786,199.22,199.17,0.03]
[1739111839197,0.12549,199.23,199.17,0.03]
[1739111839377,0.12549,199.23,199.17,14.52984786]
[1739111839577,9.20061013,199.23,199.17,0.03]
[1739111839775,0.12549,199.23,199.17,9.10512013]
[1739111842913,9.07512013,199.26,199.19,9.07512013]
[1739111843099,9.07512013,199.27,199.2,9.07512013]
[1739111843592,9.07512013,199.27,199.17,0.03]
[1739111843593,0.12549,199.26,199.19,9.07512013]
[1739111844193,9.20061013,199.26,199.19,9.07512013]
[1739111844376,9.20061013,199.24,199.17,9.10512013]
[1739111844789,13.53733853,199.22,199.17,0.03]
[1739111844995,9.20061013,199.22,199.17,0.03]
[1739111845302,9.07512013,199.22,199.17,0.03]
[1739111845467,13.53733853,199.22,199.17,0.03]
[1739111845670,9.07512013,199.22,199.17,0.03]
[1739111845896,0.12549,199.21,199.17,0.03]
[1739111846097,9.20061013,199.21,199.17,0.03]
[1739111846872,9.07512013,199.22,199.17,0.03]
[1739111847104,9.07512013,199.23,199.17,0.03]
[1739111847590,0.12549,199.22,199.17,9.10512013]
[1739111849592,9.07512013,199.25,199.18,9.07512013]
[1739111849791,9.07512013,199.26,199.18,9.07512013]
[1739111850295,0.12549,199.25,199.18,9.07512013]
[1739111851090,13.53733853,199.25,199.18,9.07512013]
[1739111851286,17.05043853,199.25,199.18,9.07512013]
[1739111851601,9.07512013,199.24,199.17,9.10512013]
[1739111852609,9.20061013,199.23,199.17,0.03]
[1739111852782,9.07512013,199.22,199.17,0.03]
[1739111853385,9.07512013,199.23,199.17,0.03]
[1739111854008,0.12549,199.22,199.17,0.03]
[1739111854180,9.07512013,199.21,199.17,0.03]
[1739111854379,0.12549,199.2,199.17,0.03]
[1739111854685,9.20061013,199.2,199.17,0.03]
[1739111855485,9.20061013,199.18,199.17,0.03]
[1739111862411,26.12685866,199.18,199.17,0.03]
[1739111868794,9.07512013,199.22,199.17,0.03]
[1739111868986,9.07512013,199.21,199.17,0.03]
[1739111870819,9.20061013,199.19,199.17,0.03]
[1739111871115,9.07512013,199.18,199.17,0.03]
[1739111871317,0.12549,199.19,199.17,0.03]
[1739111871996,9.20061013,199.19,199.17,0.03]
[1739111872315,9.20061013,199.18,199.17,0.03]
[1739111873085,22.61245866,199.18,199.17,0.03]
[1739111873991,26.12685866,199.18,199.17,0.03]
[1739111875817,9.07512013,199.2,199.17,0.03]
[1739111876117,9.07512013,199.21,199.17,0.03]
[1739111876485,20.0,199.18,199.17,0.03]
[1739111877724,42.48696866,199.18,199.17,0.03]
[1739111877940,46.00136866,199.18,199.17,0.03]
[1739111880723,33.41184853,199.18,199.17,0.03]
[1739111881923,9.07512013,199.26,199.18,1.6063]
[1739111882099,9.07512013,199.26,199.2,9.07512013]
[1739111882295,9.13812013,199.28,199.21,9.07512013]
[1739111882508,0.063,199.28,199.23,9.07512013]
[1739111883303,9.13812013,199.28,199.21,9.07512013]
[1739111883525,0.063,199.28,199.23,9.07512013]
[1739111884015,0.063,199.28,199.27,9.07512013]
[1739111885426,0.063,199.28,199.27,15.49472013]
[1739111885605,0.063,199.28,199.27,17.05822013]
[1739111886498,0.063,199.29,199.27,17.05822013]
[1739111886700,0.063,199.29,199.28,18.15024026]
[1739111887222,0.063,199.29,199.28,19.15024026]
[1739111887718,0.063,199.36,199.35,14.49386088]
[1739111888418,0.063,199.36,199.27,23.52043853]
[1739111888419,0.063,199.36,199.34,14.49386088]
[1739111889424,0.063,199.36,199.35,14.49386088]
[1739111891228,0.063,199.36,199.31,14.49386088]
[1739111891607,0.063,199.36,199.35,14.49386088]
[1739111892525,13.53733853,199.35,199.29,6.4196]